bitfinex/quotes_SOLUSD_20250929
["timestamp","ask_amount","ask_price","bid_price","bid_amount"]
[1759145707336,0.1,207.83,207.82,16.84548641]
[1759145707819,0.1,207.83,207.82,12.03363]
[1759145709139,0.1,207.83,207.82,16.84548641]
[1759145711027,0.1,207.83,207.82,12.03363]
[1759145711643,2.10727728,207.83,207.82,11.35363]
[1759145711850,1.52727728,207.83,207.82,11.35363]
[1759145712052,1.52727728,207.83,207.82,12.03363]
[1759145712244,0.1,207.83,207.82,12.03363]
[1759145713947,0.1,207.83,207.82,11.35363]
[1759145714937,0.1,207.83,207.82,12.07363]
[1759145716261,0.1,207.83,207.82,16.88548641]
[1759145718461,0.1,207.83,207.82,11.35363]
[1759145720154,0.1,207.83,207.82,16.88548641]
[1759145720939,0.1,207.83,207.82,12.07363]
[1759145721344,0.1,207.83,207.82,16.88548641]
[1759145725638,0.1,207.83,207.82,16.87548641]
[1759145726044,0.1,207.83,207.82,54.03548641]
[1759145728662,26.58,207.9,207.82,54.03548641]
[1759145728964,1.42727728,207.89,207.88,11.35363]
[1759145730455,27.42727728,207.89,207.88,11.35363]
[1759145731570,1.42727728,207.89,207.88,11.35363]
[1759145731736,26.0,207.9,207.88,11.35363]
[1759145731939,1.42727728,207.89,207.88,11.35363]
[1759145732888,8.04251147,207.93,207.91,11.35363]
[1759145733050,5.38935027,207.93,207.91,11.35363]
[1759145733367,1.42727728,207.92,207.91,11.35363]
[1759145733737,45.83241342,207.92,207.91,11.35363]
[1759145733961,13.59559401,207.91,207.89,11.35363]
[1759145734263,132.9,207.95,207.87,11.35363]
[1759145734264,26.0,207.88,207.87,11.35363]
[1759145734440,26.0,207.88,207.83,0.71]
[1759145734441,27.42727728,207.91,207.9,11.35363]
[1759145734864,1.42727728,207.91,207.9,11.35363]
[1759145735562,30.80932065,207.93,207.9,11.35363]
[1759145735737,1.42727728,207.92,207.9,11.35363]
[1759145737153,4.80912153,207.94,207.86,0.71]
[1759145737154,4.76043848,207.95,207.94,11.35363]
[1759145737353,6.33612556,207.95,207.94,11.35363]
[1759145737759,6.91612556,207.95,207.94,11.35363]
[1759145738193,26.0,207.93,207.92,11.35363]
[1759145738467,27.42727728,207.93,207.92,11.35363]
[1759145738965,41.02287129,207.93,207.92,11.35363]
[1759145739145,41.60287129,207.93,207.92,11.35363]
[1759145739653,13.59559401,207.92,207.9,11.35363]
[1759145739857,14.17559401,207.91,207.9,11.35363]
[1759145740239,24.44574042,207.91,207.9,11.35363]
[1759145741365,39.59559401,207.88,207.87,11.35363]
[1759145741552,42.40280577,207.88,207.83,11.35363]
[1759145741745,28.22721176,207.84,207.83,11.35363]
[1759145741952,13.59559401,207.83,207.81,11.35363]
[1759145742152,4.81185641,207.82,207.81,11.35363]
[1759145742562,7.03906817,207.82,207.81,11.35363]
[1759145744557,20.63466218,207.82,207.81,11.35363]
[1759145744862,26.0,207.79,207.77,11.35363]
[1759145745069,28.22721176,207.78,207.77,11.35363]
[1759145746271,13.59559401,207.76,207.75,11.35363]
[1759145746581,65.46721176,207.78,207.77,11.35363]
[1759145747550,70.27999451,207.78,207.77,11.35363]
[1759145747751,84.45558852,207.78,207.77,11.35363]
[1759145748060,13.59559401,207.77,207.75,11.35363]
[1759145748254,14.17559401,207.77,207.75,11.35363]
[1759145748774,4.81324605,207.76,207.75,11.35363]
[1759145748989,13.59559401,207.77,207.75,11.35363]
[1759145749278,13.59559401,207.77,207.72,11.35363]
[1759145749279,26.0,207.73,207.72,11.35363]
[1759145749456,2.22721176,207.73,207.72,11.35363]
[1759145750378,7.04115293,207.73,207.72,11.35363]
[1759145751366,2.22721176,207.73,207.72,11.35363]
[1759145754481,2.22721176,207.73,207.72,12.03363]
[1759145758492,2.22721176,207.73,207.72,11.35363]
[1759145759873,33.04115293,207.73,207.72,11.35363]
[1759145762163,28.22721176,207.73,207.72,11.35363]
[1759145762570,28.22721176,207.73,207.72,12.03363]
[1759145762772,28.22721176,207.73,207.72,11.35363]
[1759145763190,26.0,207.73,207.72,11.35363]
[1759145763367,37.26,207.75,207.74,11.35363]
[1759145763368,28.22721176,207.75,207.74,11.35363]
[1759145763567,2.22721176,207.75,207.74,12.03363]
[1759145763780,2.22721176,207.75,207.74,11.35363]
[1759145763979,28.22721176,207.75,207.74,11.35363]
[1759145764581,28.22721176,207.75,207.74,12.03363]
[1759145765386,33.04068949,207.75,207.74,11.35363]
[1759145765690,13.59559401,207.74,207.72,11.35363]
[1759145765861,53.06280577,207.73,207.72,11.35363]
[1759145766985,53.64280577,207.73,207.72,11.35363]
[1759145767398,57.87674694,207.73,207.72,11.35363]
[1759145769988,39.46721176,207.73,207.72,11.35363]
[1759145770292,39.46721176,207.73,207.72,12.03363]
[1759145770502,15.82280577,207.76,207.75,11.35363]
[1759145770664,2.22721176,207.76,207.75,12.03363]
[1759145770985,135.02721176,207.78,207.77,11.35363]
[1759145771179,2.22721176,207.78,207.77,12.03363]
[1759145771378,28.22721176,207.78,207.77,12.03363]
[1759145771584,2.22721176,207.78,207.77,12.03363]
[1759145771793,28.22721176,207.78,207.77,12.03363]
[1759145773789,0.58,207.82,207.81,11.35363]
[1759145773790,50.83559401,207.82,207.81,11.35363]
[1759145774873,53.06280577,207.82,207.81,11.35363]
[1759145775073,7.03906817,207.82,207.81,11.35363]
[1759145777196,20.63466218,207.82,207.81,11.35363]
[1759145780498,39.59559401,207.8,207.79,11.35363]
[1759145780695,40.17559401,207.8,207.79,11.35363]
[1759145781002,39.59559401,207.8,207.79,11.35363]
[1759145781503,44.40791354,207.8,207.79,11.35363]
[1759145782903,44.40791354,207.8,207.79,12.07363]
[1759145783105,81.60791354,207.8,207.79,12.07363]
[1759145783610,81.60791354,207.8,207.79,11.35363]
[1759145784204,94.21871238,207.8,207.77,11.35363]
[1759145784411,2.22721176,207.78,207.77,11.35363]
[1759145784592,39.42721176,207.78,207.77,11.35363]
[1759145785807,53.60280577,207.78,207.75,11.35363]
[1759145786010,44.40884006,207.76,207.75,11.35363]
[1759145786195,13.59559401,207.74,207.73,11.35363]
[1759145786398,53.02280577,207.74,207.73,11.35363]
[1759145786805,64.37643577,207.74,207.73,11.35363]
[1759145787707,53.02280577,207.74,207.73,11.35363]
[1759145788105,57.83651521,207.74,207.73,12.07363]
[1759145788809,57.83651521,207.74,207.73,11.35363]
[1759145793208,61.07827546,207.74,207.73,11.35363]
[1759145795930,57.81651521,207.74,207.73,11.35363]
[1759145796732,57.83651521,207.74,207.73,11.35363]
[1759145797030,20.63651521,207.74,207.73,12.07363]
[1759145797226,57.83651521,207.74,207.73,12.07363]
[1759145799925,20.63651521,207.74,207.73,12.07363]
[1759145800101,57.83651521,207.74,207.73,12.07363]
[1759145800306,57.03669203,207.74,207.73,11.35363]
[1759145804532,60.27748228,207.74,207.73,11.35363]
[1759145805236,39.59559401,207.7,207.68,11.35363]
[1759145805434,38.62738858,207.69,207.68,11.35363]
[1759145805642,1.42738858,207.69,207.68,11.35363]
[1759145805813,27.42738858,207.69,207.68,11.35363]
[1759145806008,27.42738858,207.69,207.68,12.07363]
[1759145806637,1.42738858,207.69,207.68,12.07363]
[1759145807141,32.24225689,207.69,207.68,12.07363]
[1759145807346,6.24225689,207.69,207.68,12.07363]
[1759145809437,32.24225689,207.69,207.68,12.07363]
[1759145810010,6.24225689,207.69,207.68,12.07363]
[1759145810426,45.8378509,207.69,207.68,11.35363]
[1759145810625,57.0378509,207.69,207.68,11.35363]
[1759145810935,13.59559401,207.66,207.64,11.35363]
[1759145811242,13.59559401,207.63,207.62,11.35363]
[1759145812331,18.4118537,207.63,207.62,11.35363]
[1759145812936,18.9918537,207.63,207.62,11.35363]
[1759145813153,18.4118537,207.63,207.62,11.35363]
[1759145817448,26.0,207.62,207.61,0.2]
[1759145817645,64.62738858,207.62,207.61,0.2]
[1759145818466,78.22298259,207.62,207.61,0.2]
[1759145820068,86.84806924,207.62,207.61,0.2]
[1759145820373,86.84806924,207.62,207.61,11.55363]
[1759145820657,83.03947425,207.62,207.61,12.23363]
[1759145821135,83.03947425,207.62,207.61,11.55363]
[1759145821757,87.02194749,207.62,207.61,0.2]
[1759145821958,87.60194749,207.62,207.61,0.2]
[1759145822260,13.59559401,207.61,207.59,0.2]
[1759145822467,50.79559401,207.6,207.59,0.2]
[1759145822660,62.14922401,207.6,207.59,0.2]
[1759145823165,39.59559401,207.56,207.54,11.35363]
[1759145823365,76.79559401,207.56,207.54,11.35363]
[1759145823770,76.79559401,207.56,207.52,12.03363]
[1759145824068,15.02298259,207.53,207.52,11.35363]
[1759145824276,62.84922401,207.55,207.54,11.35363]
[1759145824474,52.24298259,207.55,207.54,12.03363]
[1759145824767,57.06127959,207.55,207.54,12.03363]
[1759145824980,57.06127959,207.55,207.52,11.35363]
[1759145824981,39.59559401,207.53,207.52,11.35363]
[1759145825276,76.81559401,207.53,207.52,11.35363]
[1759145826151,76.81559401,207.53,207.52,12.03363]
[1759145826352,81.63417445,207.53,207.52,11.35363]
[1759145826557,44.41417445,207.53,207.51,0.2]
[1759145826764,38.64738858,207.52,207.51,0.2]
[1759145827143,27.42738858,207.52,207.51,0.2]
[1759145827349,64.64738858,207.52,207.51,0.2]
[1759145827570,76.00101858,207.52,207.51,0.2]
[1759145828468,80.81983122,207.52,207.51,0.2]
[1759145829067,39.59559401,207.52,207.51,0.88]
[1759145829260,41.02298259,207.52,207.51,0.88]
[1759145829647,45.84179523,207.52,207.51,0.88]
[1759145829848,45.84179523,207.52,207.51,0.2]
[1759145830870,46.42179523,207.52,207.51,0.2]
[1759145831449,83.64179523,207.52,207.51,0.2]
[1759145831675,46.42179523,207.52,207.51,0.2]
[1759145831983,83.64179523,207.52,207.51,0.2]
[1759145832361,83.06179523,207.52,207.51,0.2]
[1759145832561,94.41542523,207.52,207.51,0.2]
[1759145835155,57.19542523,207.52,207.51,0.2]
[1759145835356,94.41542523,207.52,207.51,0.86]
[1759145835685,94.41542523,207.52,207.51,0.2]
[1759145836879,94.99542523,207.52,207.51,0.2]
[1759145837064,57.19542523,207.52,207.51,0.2]
[1759145837265,94.41542523,207.52,207.51,0.2]
[1759145839472,57.19542523,207.52,207.51,0.2]
[1759145839673,94.41542523,207.52,207.51,0.2]
[1759145840661,57.19542523,207.52,207.51,0.2]
[1759145840856,94.41542523,207.52,207.51,0.2]
[1759145841052,57.19542523,207.52,207.51,0.2]
[1759145841259,26.37661259,207.52,207.51,12.23363]
[1759145841559,19.84179523,207.52,207.51,12.23363]
[1759145842159,15.02298259,207.52,207.51,12.23363]
[1759145843364,12.23363,207.54,207.53,11.35363]
[1759145843566,1.42738858,207.55,207.53,12.03363]
[1759145843765,1.42738858,207.55,207.51,0.2]
[1759145843766,6.24411224,207.61,207.6,11.35363]
[1759145843984,6.24411224,207.61,207.6,12.03363]
[1759145844167,57.09970625,207.61,207.6,12.03363]
[1759145844569,71.59421042,207.61,207.6,12.03363]
[1759145846073,65.35009818,207.61,207.6,12.03363]
[1759145846285,27.42738858,207.61,207.6,12.03363]
[1759145846460,1.42738858,207.61,207.6,12.03363]
[1759145850981,27.42738858,207.61,207.6,12.03363]
[1759145851385,26.0,207.61,207.6,12.03363]
[1759145851684,26.0,207.62,207.6,12.03363]
[1759145851864,1.42738858,207.64,207.6,12.03363]
[1759145851865,26.0,207.61,207.6,11.35363]
[1759145852391,26.0,207.61,207.6,12.03363]
[1759145857869,26.0,207.63,207.6,12.03363]
[1759145858075,26.0,207.63,207.61,0.68]
[1759145858468,26.0,207.63,207.62,12.03363]
[1759145864705,26.0,207.63,207.62,11.35363]
[1759145865296,30.81625969,207.63,207.62,11.35363]
[1759145867298,26.0,207.63,207.62,12.03363]
[1759145868392,30.81625969,207.63,207.62,12.03363]
[1759145868599,30.81625969,207.63,207.62,11.35363]
[1759145869099,30.81625969,207.63,207.62,12.03363]
[1759145869314,26.0,207.63,207.62,12.03363]
[1759145869878,30.81625969,207.63,207.62,12.03363]
[1759145870398,30.81625969,207.63,207.62,11.35363]
[1759145870707,30.81625969,207.63,207.62,12.03363]
[1759145874807,30.81625969,207.63,207.62,11.35363]
[1759145875796,44.4118537,207.63,207.62,11.35363]
[1759145877692,39.59559401,207.63,207.62,12.04363]
[1759145877890,26.0,207.63,207.62,12.04363]
[1759145879995,30.81625969,207.63,207.62,11.35363]
[1759145880198,44.4118537,207.63,207.62,11.35363]
[1759145880393,44.9918537,207.63,207.62,11.35363]
[1759145880716,44.4118537,207.63,207.62,11.35363]
[1759145883200,44.9918537,207.63,207.62,11.35363]
[1759145883519,44.4118537,207.63,207.62,11.35363]
[1759145884695,26.0,207.63,207.62,12.04363]
[1759145885223,26.0,207.64,207.62,12.04363]
[1759145885418,26.0,207.64,207.63,5.50625969]
[1759145885720,35.28096576,207.67,207.66,11.35363]
[1759145886404,40.09629777,207.67,207.66,11.35363]
[1759145888627,53.69189178,207.67,207.66,11.35363]
[1759145888799,57.5158918,207.67,207.66,11.35363]
[1759145889114,94.7158918,207.67,207.66,11.35363]
[1759145889516,94.1358918,207.67,207.66,11.35363]
[1759145891112,94.7158918,207.67,207.66,11.35363]
[1759145891315,94.7158918,207.67,207.62,0.69]
[1759145891316,26.0,207.65,207.64,11.35363]
[1759145891519,82.27145405,207.65,207.64,11.35363]
[1759145891705,49.88724986,207.65,207.64,12.04363]
[1759145891906,73.49165585,207.65,207.64,12.04363]
[1759145892108,36.29165585,207.65,207.64,12.04363]
[1759145892304,4.81579581,207.65,207.64,12.04363]
[1759145892526,30.81579581,207.65,207.64,12.04363]
[1759145892711,4.81579581,207.65,207.64,12.04363]
[1759145893022,3.24400002,207.66,207.64,12.04363]
[1759145893227,37.51282578,207.67,207.53,14.1877819]
[1759145893228,43.34052261,207.67,207.66,11.35363]
[1759145893402,69.34052261,207.67,207.66,12.07363]
[1759145893610,43.34052261,207.67,207.66,12.07363]
[1759145894025,69.34052261,207.67,207.66,12.07363]
[1759145894325,66.09652259,207.67,207.66,12.07363]
[1759145900335,30.81555683,207.67,207.66,12.07363]
[1759145901130,26.0,207.67,207.66,12.07363]
[1759145901634,8.06380295,207.7,207.69,11.35363]
[1759145901818,4.81467806,207.7,207.69,11.35363]
[1759145902529,18.41027207,207.7,207.69,11.35363]
[1759145902737,22.23939696,207.7,207.69,11.35363]
[1759145903050,33.59302696,207.7,207.69,11.35363]
[1759145903539,39.59559401,207.68,207.67,11.35363]
[1759145903736,41.82745403,207.68,207.67,11.35363]
[1759145905039,46.64255418,207.68,207.67,11.35363]
[1759145910534,13.59559401,207.67,207.64,11.35363]
[1759145910741,39.59559401,207.64,207.62,11.35363]
[1759145910920,53.02745403,207.63,207.62,11.35363]
[1759145911115,26.0,207.61,207.6,11.35363]
[1759145911336,28.23186002,207.61,207.6,11.35363]
[1759145911721,33.04858368,207.61,207.6,11.35363]
[1759145913349,33.04858368,207.61,207.6,12.05363]
[1759145918648,26.0,207.61,207.6,12.05363]
[1759145918851,15.82745403,207.66,207.65,11.35363]
[1759145919145,13.59559401,207.68,207.67,11.35363]
[1759145919342,16.84257982,207.68,207.67,11.35363]
[1759145920152,21.65767997,207.68,207.67,11.35363]
[1759145920744,30.81510015,207.68,207.67,12.05363]
[1759145921335,44.41069416,207.68,207.67,11.35363]
[1759145921536,47.65735793,207.68,207.67,11.35363]
[1759145921729,84.85735793,207.68,207.67,11.35363]
[1759145922346,86.28559381,207.68,207.67,11.35363]
[1759145922958,97.63922381,207.68,207.67,11.35363]
[1759145924152,13.59559401,207.67,207.65,11.35363]
[1759145924447,18.41115791,207.66,207.65,11.35363]
[1759145925655,55.61115791,207.66,207.65,11.35363]
[1759145925831,58.85782168,207.66,207.65,11.35363]
[1759145926370,59.43782168,207.66,207.65,11.35363]
[1759145926858,26.0,207.63,207.61,0.7]
[1759145927033,26.0,207.62,207.61,0.7]
[1759145927233,63.2,207.62,207.61,0.7]
[1759145928130,68.01649166,207.62,207.61,0.7]
[1759145928331,68.01649166,207.62,207.6,0.7]
[1759145928533,68.01649166,207.62,207.53,4.81852911]
[1759145928861,68.01649166,207.62,207.58,0.7]
[1759145929239,80.05772082,207.62,207.58,0.7]
[1759145930147,80.63772082,207.62,207.58,0.7]
[1759145930353,26.0,207.59,207.58,0.7]
[1759145931757,26.0,207.59,207.56,0.66]
[1759145931959,26.0,207.59,207.57,0.66]
[1759145931960,30.81741978,207.58,207.57,0.66]
[1759145933867,42.86096925,207.58,207.57,0.66]
[1759145935565,42.86096925,207.58,207.56,0.66]
[1759145936865,30.81741978,207.58,207.57,0.66]
[1759145937052,4.81741978,207.58,207.57,0.66]
[1759145937573,30.81721667,207.59,207.57,0.66]
[1759145938566,30.81721667,207.59,207.53,4.81836047]
[1759145938753,30.81721667,207.59,207.58,0.66]
[1759145940066,30.81721667,207.59,207.55,0.66]
[1759145940262,30.81721667,207.59,207.56,0.66]
[1759145940263,26.0,207.57,207.56,0.66]
[1759145940465,30.81765187,207.57,207.56,0.66]
[1759145940952,26.0,207.58,207.56,0.66]
[1759145941267,26.0,207.58,207.57,0.66]
[1759145944767,30.81741978,207.58,207.57,0.66]
[1759145944958,26.0,207.57,207.51,12.24761216]
[1759145945272,26.0,207.57,207.52,0.66]
[1759145945480,26.0,207.57,207.53,0.66]
[1759145946152,4.81788398,207.56,207.53,0.66]
[1759145946348,26.0,207.55,207.53,0.66]
[1759145946666,26.0,207.55,207.54,0.66]
[1759145947666,26.0,207.53,207.51,0.86]
[1759145947870,26.0,207.53,207.51,0.2]
[1759145948403,26.0,207.53,207.52,0.66]
[1759145948972,26.0,207.53,207.51,0.2]
[1759145949275,26.0,207.53,207.52,0.66]
[1759145949455,1.42823588,207.55,207.52,0.66]
[1759145949456,26.0,207.55,207.52,0.66]
[1759145949661,4.81811551,207.56,207.52,0.66]
[1759145949662,26.0,207.54,207.52,0.66]
[1759145950471,26.0,207.55,207.52,5.4787789]
[1759145950673,26.0,207.55,207.53,0.66]
[1759145950866,26.0,207.55,207.54,0.66]
[1759145952575,19.84073069,207.61,207.54,5.47834827]
[1759145952766,57.04073069,207.61,207.55,0.66]
[1759145953080,26.0,207.58,207.55,0.66]
[1759145954378,26.0,207.58,207.55,5.47801731]
[1759145954553,26.0,207.58,207.56,0.65]
[1759145954879,26.0,207.58,207.57,0.65]
[1759145957568,26.0,207.59,207.57,0.65]
[1759145957769,26.0,207.59,207.58,0.65]
[1759145958058,26.0,207.59,207.57,0.65]
[1759145958466,26.0,207.59,207.55,4.81789882]
[1759145958662,26.0,207.59,207.56,0.65]
[1759145958868,4.81651532,207.62,207.56,0.65]
[1759145959067,26.0,207.6,207.56,0.65]
[1759145959484,26.0,207.6,207.57,4.81765187]
[1759145959665,26.0,207.6,207.58,0.65]
[1759145960080,26.0,207.61,207.59,0.65]
[1759145960467,26.0,207.64,207.59,0.65]
[1759145960779,4.81601753,207.65,207.59,0.65]
[1759145960780,26.0,207.62,207.59,0.65]
[1759145961488,26.0,207.62,207.57,12.04412969]
[1759145961785,26.0,207.64,207.58,0.72]
[1759145963079,26.0,207.64,207.58,5.53741978]
[1759145963272,26.0,207.64,207.59,0.72]
[1759145963671,30.81610657,207.64,207.59,0.72]
[1759145963980,31.39610657,207.64,207.59,0.72]
[1759145965286,31.39610657,207.64,207.56,12.04469247]
[1759145965287,30.81610657,207.64,207.6,0.72]
[1759145966180,26.0,207.63,207.6,0.72]
[1759145968990,26.0,207.63,207.58,5.5374186]
[1759145969170,26.0,207.63,207.59,0.72]
[1759145969789,30.81630029,207.63,207.58,4.8174186]
[1759145969972,0.58,207.62,207.58,4.8174186]
[1759145970174,30.81630029,207.63,207.58,5.5374186]
[1759145970474,31.39630029,207.63,207.58,5.5374186]
[1759145971272,26.58,207.63,207.58,5.5374186]
[1759145974996,31.39629388,207.63,207.57,4.81764798]
[1759145975298,31.39629388,207.63,207.53,128.54587549]
[1759145975299,0.58,207.62,207.55,0.72]
[1759145975683,0.58,207.62,207.54,0.72]
[1759145975884,4.81729321,207.59,207.54,0.72]
[1759145976076,4.81729321,207.59,207.55,0.72]
[1759145976783,31.39729321,207.59,207.55,0.72]
[1759145977603,26.0,207.58,207.55,0.72]
[1759145978798,26.0,207.59,207.55,5.53810681]
[1759145979476,26.0,207.59,207.56,0.72]
[1759145979895,26.0,207.63,207.57,0.72]
[1759145980990,31.39644752,207.63,207.57,5.53749426]
[1759145982178,30.81644752,207.63,207.54,16.86421894]
[1759145982377,0.58,207.62,207.55,0.72]
[1759145984414,26.0,207.59,207.56,4.81788398]
[1759145984699,26.0,207.59,207.57,0.72]
[1759145987198,26.0,207.59,207.54,4.81834827]
[1759145987405,26.0,207.59,207.55,0.72]
[1759145987578,26.0,207.59,207.55,5.53803932]
[1759145987780,26.0,207.59,207.56,0.72]
[1759145988704,26.58,207.59,207.54,5.53831644]
[1759145988904,26.0,207.59,207.55,0.72]
[1759145989120,26.0,207.59,207.56,0.72]
[1759145990709,30.8169586,207.6,207.56,0.72]
[1759145991010,31.3969586,207.6,207.55,4.81799065]
[1759145991312,31.3969586,207.6,207.55,5.47799065]
[1759145992190,31.3969586,207.6,207.54,4.81834827]
[1759145992499,26.58,207.6,207.55,0.66]
[1759145992705,26.58,207.6,207.56,0.66]
[1759145993499,26.58,207.6,207.56,5.47776773]
[1759145995590,31.39697398,207.6,207.56,0.66]
[1759145996306,26.58,207.59,207.54,0.66]
[1759145996515,28.2323999,207.57,207.51,0.2]
[1759145996888,0.58,207.56,207.51,0.2]
[1759145997206,33.05018913,207.57,207.51,0.2]
[1759145997412,0.58,207.56,207.51,0.86]
[1759145997594,0.58,207.56,207.51,5.67900946]
[1759145997801,0.58,207.56,207.51,5.01900946]
[1759145997999,0.58,207.56,207.52,0.66]
[1759145998395,26.0,207.55,207.52,0.66]
[1759145999415,0.58,207.54,207.51,0.2]
[1759145999608,31.3980565,207.56,207.51,5.67904478]
[1759146000501,0.58,207.55,207.51,0.2]
[1759146000814,30.8180565,207.56,207.51,0.2]
[1759146000815,26.0,207.53,207.51,0.2]
[1759146001200,14.17559401,207.52,207.51,0.2]
[1759146001395,56.17440665,207.52,207.51,0.1]
[1759146001698,59.42287625,207.52,207.51,0.1]
[1759146002320,56.17440665,207.52,207.51,0.1]
[1759146006621,58.10784794,207.52,207.51,0.1]
[1759146008118,26.0,207.52,207.51,0.76]
[1759146008329,2.2323999,207.54,207.51,0.76]
[1759146008512,4.81788398,207.56,207.51,0.76]
[1759146008818,26.0,207.54,207.51,0.76]
[1759146009011,26.0,207.54,207.52,0.66]
[1759146009610,26.0,207.53,207.51,0.1]
[1759146010324,26.0,207.52,207.51,0.1]
[1759146010730,26.0,207.53,207.51,0.1]
[1759146011316,26.0,207.52,207.51,0.1]
[1759146012421,26.0,207.52,207.51,0.76]
[1759146013429,26.0,207.52,207.51,0.1]
[1759146013628,82.07440665,207.52,207.51,0.1]
[1759146014901,84.00784793,207.52,207.51,0.1]
[1759146018930,87.24149421,207.52,207.51,0.1]
[1759146019930,84.00784793,207.52,207.51,1e-08]
[1759146026549,46.34784793,207.52,207.51,1e-08]
[1759146026729,83.52784793,207.52,207.51,1e-08]
[1759146027124,84.00784793,207.52,207.51,1e-08]
[1759146031843,83.52784793,207.52,207.51,1e-08]
[1759146033226,86.76153506,207.52,207.51,1e-08]
[1759146034431,87.24153506,207.52,207.51,1e-08]
[1759146034740,86.76153506,207.52,207.51,1e-08]
[1759146036856,49.58153506,207.52,207.51,0.66000001]
[1759146037146,83.52784793,207.52,207.51,1e-08]
[1759146037347,86.76465442,207.52,207.51,1e-08]
[1759146041151,49.58465442,207.52,207.51,0.66000001]
[1759146041356,18.76584178,207.52,207.51,0.66000001]
[1759146041650,16.10195388,207.57,207.51,0.66000001]
[1759146041651,8.0545672,207.57,207.51,0.66000001]
[1759146041942,26.0,207.55,207.51,0.66000001]
[1759146042132,26.0,207.55,207.51,5.47902285]
[1759146042334,26.0,207.55,207.52,0.66]
[1759146043338,30.81814293,207.55,207.52,0.66]
[1759146044645,26.0,207.53,207.52,0.66]
[1759146045554,30.81858044,207.53,207.52,0.66]
[1759146049930,26.0,207.52,207.51,1e-08]
[1759146050136,81.91222568,207.52,207.51,1e-08]
[1759146050358,81.91222568,207.52,207.49,0.2]
[1759146050359,39.59559401,207.49,207.48,1e-08]
[1759146050659,78.18519361,207.49,207.48,1e-08]
[1759146050857,13.59559401,207.48,207.47,1e-08]
[1759146051060,17.32262608,207.48,207.47,1e-08]
[1759146051961,22.14236774,207.48,207.47,1e-08]
[1759146052156,24.07636991,207.48,207.47,1e-08]
[1759146052365,23.59636991,207.48,207.47,1e-08]
[1759146052554,58.93893744,207.48,207.47,1e-08]
[1759146052744,62.18596951,207.48,207.47,1e-08]
[1759146053755,25.02596951,207.48,207.47,1e-08]
[1759146054063,57.00493527,207.48,207.47,0.72000001]
[1759146054237,60.25196734,207.48,207.47,1e-08]
[1759146054440,62.18559555,207.48,207.47,1e-08]
[1759146056060,21.77856348,207.48,207.47,0.72000001]
[1759146056246,43.40934126,207.48,207.47,0.72000001]
[1759146058567,6.24934126,207.48,207.47,0.72000001]
[1759146058864,57.00493527,207.48,207.47,0.72000001]
[1759146059352,19.84493527,207.48,207.47,0.72000001]
[1759146059662,57.00493527,207.48,207.47,0.72000001]
[1759146060162,57.48493527,207.48,207.47,1e-08]
[1759146060373,60.73302575,207.48,207.47,1e-08]
[1759146060662,62.66702792,207.48,207.47,1e-08]
[1759146060872,25.02702792,207.48,207.47,1e-08]
[1759146061045,62.18702792,207.48,207.47,1e-08]
[1759146061241,60.75742832,207.48,207.47,1e-08]
[1759146061565,60.75742832,207.48,207.47,0.72000001]
[1759146061961,58.82342615,207.48,207.47,0.72000001]
[1759146063765,8.06783214,207.48,207.47,0.72000001]
[1759146063955,55.57533567,207.48,207.47,0.72000001]
[1759146064270,81.57533567,207.48,207.47,0.72000001]
[1759146065054,4.81894526,207.52,207.47,5.53996853]
[1759146065251,4.81894526,207.52,207.48,0.72]
[1759146065252,26.0,207.5,207.48,0.72]
[1759146065466,4.81894526,207.52,207.48,0.72]
[1759146065657,26.0,207.5,207.48,0.72]
[1759146067064,26.0,207.51,207.48,0.72]